[Event "Titled Tuesday Blitz August 22 Late 2023"]
[White "Kozusek, Daniel"]
[Black "Hajiyev, Kanan"]
[WhiteFideId "349500"]
[BlackFideId "13404148"]
[WhiteElo "2587"]
[BlackElo "2461"]
[Result "1-0"]
[Round "7"]
[TimeControl "180+1"]
[Date "2023.08.22"]
[WhiteClock "0:00:31"]
[BlackClock "0:00:07"]
[Board "83"]

1. d4 {[%clk 0:03:00]}  c6 {[%clk 0:03:00]} 2. c4 {[%clk 0:03:00]}  d5 {[%clk 0:03:01]} 3. cxd5 {[%clk 0:03:00]}  cxd5 {[%clk 0:03:02]} 4. Bf4 {[%clk 0:03:01]}  Nf6 {[%clk 0:03:02]} 5. e3 {[%clk 0:03:01]}  a6 {[%clk 0:03:03]} 6. Nc3 {[%clk 0:03:00]}  Nc6 {[%clk 0:03:04]} 7. Be2 {[%clk 0:02:59]}  Bf5 {[%clk 0:03:05]} 8. g4 {[%clk 0:02:59]}  Be6 {[%clk 0:02:56]} 9. h4 {[%clk 0:02:55]}  g6 {[%clk 0:02:53]} 10. h5 {[%clk 0:02:52]}  gxh5 {[%clk 0:02:44]} 11. g5 {[%clk 0:02:52]}  Ne4 {[%clk 0:02:38]} 12. Nxe4 {[%clk 0:02:48]}  dxe4 {[%clk 0:02:39]} 13. Bxh5 {[%clk 0:02:40]}  Bg7 {[%clk 0:02:29]} 14. Bg4 {[%clk 0:02:33]}  Qa5+ {[%clk 0:02:28]} 15. Kf1 {[%clk 0:02:31]}  Bxg4 {[%clk 0:02:24]} 16. Qxg4 {[%clk 0:02:31]}  Qb5+ {[%clk 0:02:17]} 17. Kg2 {[%clk 0:02:27]}  Qxb2 {[%clk 0:02:16]} 18. Ne2 {[%clk 0:02:27]}  Qb5 {[%clk 0:01:31]} 19. Ng3 {[%clk 0:02:17]}  e5 {[%clk 0:01:20]} 20. dxe5 {[%clk 0:02:01]}  Nxe5 {[%clk 0:01:17]} 21. Qf5 {[%clk 0:01:54]}  Qd7 {[%clk 0:00:50]} 22. Rhd1 {[%clk 0:00:59]}  Qe6 {[%clk 0:00:39]} 23. Qxe6+ {[%clk 0:00:58]}  fxe6 {[%clk 0:00:39]} 24. Nh5 {[%clk 0:00:58]}  Nd3 {[%clk 0:00:19]} 25. Nxg7+ {[%clk 0:00:53]}  Kf7 {[%clk 0:00:20]} 26. Nh5 {[%clk 0:00:53]}  e5 {[%clk 0:00:18]} 27. Bg3 {[%clk 0:00:46]}  Rac8 {[%clk 0:00:11]} 28. Nf6 {[%clk 0:00:43]}  Nc5 {[%clk 0:00:10]} 29. Nd7 {[%clk 0:00:40]}  Nd3 {[%clk 0:00:08]} 30. Nxe5+ {[%clk 0:00:40]}  Ke6 {[%clk 0:00:08]} 31. Nxd3 {[%clk 0:00:40]}  exd3 {[%clk 0:00:09]} 32. Rxd3 {[%clk 0:00:40]}  Rhg8 {[%clk 0:00:10]} 33. Rd6+ {[%clk 0:00:38]}  Ke7 {[%clk 0:00:07]} 34. Rad1 {[%clk 0:00:31]} 1-0


[Site "https://www.chess.com"]

[Event "Titled Tuesday Blitz August 22 Late 2023"]
[White "Salazar Farias, Luis German"]
[Black "Rosen, Eric"]
[WhiteFideId "3902170"]
[BlackFideId "2032562"]
[WhiteElo "2457"]
[BlackElo "2577"]
[Result "0-1"]
[Round "7"]
[TimeControl "180+1"]
[Date "2023.08.22"]
[WhiteClock "0:00:00"]
[BlackClock "0:00:06"]
[Board "84"]

1. d4 {[%clk 0:03:00]}  d5 {[%clk 0:02:59]} 2. c4 {[%clk 0:03:00]}  e6 {[%clk 0:03:00]} 3. Nf3 {[%clk 0:03:00]}  Nf6 {[%clk 0:03:00]} 4. Nc3 {[%clk 0:03:00]}  Nbd7 {[%clk 0:03:00]} 5. Bg5 {[%clk 0:02:52]}  c6 {[%clk 0:03:00]} 6. e3 {[%clk 0:02:51]}  Qa5 {[%clk 0:03:00]} 7. Nd2 {[%clk 0:02:46]}  Bb4 {[%clk 0:03:00]} 8. Rc1 {[%clk 0:02:36]}  Ne4 {[%clk 0:02:57]} 9. Ncxe4 {[%clk 0:02:21]}  dxe4 {[%clk 0:02:53]} 10. Bh4 {[%clk 0:02:20]}  Qxa2 {[%clk 0:02:42]} 11. Be2 {[%clk 0:02:17]}  Qa5 {[%clk 0:02:40]} 12. O-O {[%clk 0:02:12]}  Bxd2 {[%clk 0:02:39]} 13. Ra1 {[%clk 0:02:11]}  Qb4 {[%clk 0:02:31]} 14. Qc2 {[%clk 0:02:11]}  e5 {[%clk 0:02:02]} 15. Ra4 {[%clk 0:01:59]}  Qd6 {[%clk 0:02:02]} 16. Qxd2 {[%clk 0:01:51]}  exd4 {[%clk 0:02:02]} 17. exd4 {[%clk 0:01:44]}  O-O {[%clk 0:01:58]} 18. Rfa1 {[%clk 0:01:34]}  a6 {[%clk 0:01:38]} 19. Bg3 {[%clk 0:01:21]}  Qg6 {[%clk 0:01:37]} 20. b4 {[%clk 0:01:14]}  Nb6 {[%clk 0:01:26]} 21. Ra5 {[%clk 0:01:09]}  Be6 {[%clk 0:01:25]} 22. Rg5 {[%clk 0:00:46]}  Qh6 {[%clk 0:01:25]} 23. Bf4 {[%clk 0:00:46]}  g6 {[%clk 0:01:06]} 24. Rb5 {[%clk 0:00:39]}  axb5 {[%clk 0:00:58]} 25. Rxa8 {[%clk 0:00:28]}  Qg7 {[%clk 0:00:40]} 26. Ra7 {[%clk 0:00:12]}  Nxc4 {[%clk 0:00:15]} 27. Bxc4 {[%clk 0:00:10]}  Bxc4 {[%clk 0:00:16]} 28. Bh6 {[%clk 0:00:10]}  Qf6 {[%clk 0:00:12]} 29. Bxf8 {[%clk 0:00:08]}  Kxf8 {[%clk 0:00:06]} 30. Qh6+ {[%clk 0:00:08]}  Ke7 {[%clk 0:00:06]} 31. Rxb7+ {[%clk 0:00:05]}  Kd6 {[%clk 0:00:06]} 32. Qe3 {[%clk 0:00:03]}  Bd5 {[%clk 0:00:06]} 33. Qg3+ {[%clk 0:00:03]}  Ke6 {[%clk 0:00:05]} 34. Qg4+ {[%clk 0:00:02]}  Qf5 {[%clk 0:00:05]} 35. Qxf5+ {[%clk 0:00:02]}  Kxf5 {[%clk 0:00:02]} 36. Ra7 {[%clk 0:00:03]}  h5 {[%clk 0:00:02]} 37. Kf1 {[%clk 0:00:04]}  Bc4+ {[%clk 0:00:02]} 38. Ke1 {[%clk 0:00:04]}  Kf4 {[%clk 0:00:03]} 39. Kd2 {[%clk 0:00:04]}  h4 {[%clk 0:00:02]} 40. Rc7 {[%clk 0:00:04]}  Bd5 {[%clk 0:00:03]} 41. h3 {[%clk 0:00:04]}  g5 {[%clk 0:00:03]} 42. Ke2 {[%clk 0:00:04]}  f6 {[%clk 0:00:02]} 43. Kd2 {[%clk 0:00:04]}  f5 {[%clk 0:00:03]} 44. Re7 {[%clk 0:00:03]}  Bc4 {[%clk 0:00:03]} 45. Re5 {[%clk 0:00:03]}  Bd5 {[%clk 0:00:03]} 46. Ke1 {[%clk 0:00:03]}  g4 {[%clk 0:00:04]} 47. hxg4 {[%clk 0:00:03]}  fxg4 {[%clk 0:00:04]} 48. Kf1 {[%clk 0:00:04]}  h3 {[%clk 0:00:04]} 49. gxh3 {[%clk 0:00:03]}  gxh3 {[%clk 0:00:04]} 50. Kg1 {[%clk 0:00:04]}  Kf3 {[%clk 0:00:04]} 51. Rf5+ {[%clk 0:00:03]}  Ke2 {[%clk 0:00:04]} 52. Rh5 {[%clk 0:00:03]}  Kd3 {[%clk 0:00:04]} 53. Rxh3+ {[%clk 0:00:03]}  Kxd4 {[%clk 0:00:05]} 54. Re3 {[%clk 0:00:02]}  Kc4 {[%clk 0:00:05]} 55. Kf1 {[%clk 0:00:03]}  Kxb4 {[%clk 0:00:06]} 56. Ke2 {[%clk 0:00:03]}  Ka4 {[%clk 0:00:06]} 57. Kd2 {[%clk 0:00:04]}  b4 {[%clk 0:00:06]} 58. Re1 {[%clk 0:00:03]}  c5 {[%clk 0:00:05]} 59. Ra1+ {[%clk 0:00:03]}  Kb5 {[%clk 0:00:05]} 60. Ke3 {[%clk 0:00:03]}  c4 {[%clk 0:00:05]} 61. Rd1 {[%clk 0:00:03]}  Kc5 {[%clk 0:00:05]} 62. Ra1 {[%clk 0:00:03]}  c3 {[%clk 0:00:05]} 63. Ra5+ {[%clk 0:00:02]}  Kc4 {[%clk 0:00:06]} 64. Ra7 {[%clk 0:00:02]}  b3 {[%clk 0:00:06]} 65. Rc7+ {[%clk 0:00:00]}  Kb4 {[%clk 0:00:06]} 0-1


[Site "https://www.chess.com"]

[Event "Titled Tuesday Blitz August 22 Late 2023"]
[White "Zeck_CH"]
[Black "Chor, Kevin"]
[BlackFideId "2090740"]
[WhiteElo "2456"]
[BlackElo "2577"]
[Result "1-0"]
[Round "7"]
[TimeControl "180+1"]
[Date "2023.08.22"]
[WhiteClock "0:00:06"]
[BlackClock "0:00:02"]
[Board "85"]

1. e4 {[%clk 0:02:58]}  c5 {[%clk 0:02:58]} 2. Nf3 {[%clk 0:02:54]}  Nc6 {[%clk 0:02:57]} 3. Bb5 {[%clk 0:02:53]}  Qb6 {[%clk 0:02:57]} 4. a4 {[%clk 0:02:52]}  e6 {[%clk 0:02:48]} 5. O-O {[%clk 0:02:50]}  Nge7 {[%clk 0:02:35]} 6. Re1 {[%clk 0:02:50]}  Ng6 {[%clk 0:02:35]} 7. c3 {[%clk 0:02:49]}  a6 {[%clk 0:02:33]} 8. Bf1 {[%clk 0:02:47]}  Be7 {[%clk 0:02:31]} 9. Na3 {[%clk 0:02:46]}  O-O {[%clk 0:02:30]} 10. Nc4 {[%clk 0:02:45]}  Qc7 {[%clk 0:02:31]} 11. d4 {[%clk 0:02:43]}  d5 {[%clk 0:02:21]} 12. exd5 {[%clk 0:02:40]}  exd5 {[%clk 0:02:22]} 13. Ne3 {[%clk 0:02:40]}  cxd4 {[%clk 0:01:44]} 14. Nxd5 {[%clk 0:02:37]}  Qa5 {[%clk 0:01:26]} 15. Nxe7+ {[%clk 0:02:19]}  Ncxe7 {[%clk 0:01:27]} 16. Nxd4 {[%clk 0:02:13]}  Rd8 {[%clk 0:01:27]} 17. Bd2 {[%clk 0:01:41]}  Qb6 {[%clk 0:01:23]} 18. Qc2 {[%clk 0:01:21]}  Bd7 {[%clk 0:01:12]} 19. a5 {[%clk 0:01:16]}  Qf6 {[%clk 0:01:11]} 20. Bc4 {[%clk 0:01:05]}  Rac8 {[%clk 0:01:10]} 21. Qb3 {[%clk 0:01:02]}  Ne5 {[%clk 0:00:58]} 22. Be2 {[%clk 0:00:52]}  Bc6 {[%clk 0:00:35]} 23. Be3 {[%clk 0:00:39]}  Bd5 {[%clk 0:00:35]} 24. Qa4 {[%clk 0:00:35]}  Qg6 {[%clk 0:00:34]} 25. f3 {[%clk 0:00:25]}  N7c6 {[%clk 0:00:31]} 26. Nxc6 {[%clk 0:00:17]}  Bxc6 {[%clk 0:00:32]} 27. Qf4 {[%clk 0:00:13]}  Nd3 {[%clk 0:00:30]} 28. Bxd3 {[%clk 0:00:13]}  Qxd3 {[%clk 0:00:28]} 29. Bd4 {[%clk 0:00:11]}  h6 {[%clk 0:00:18]} 30. Qe5 {[%clk 0:00:09]}  f6 {[%clk 0:00:16]} 31. Qe6+ {[%clk 0:00:09]}  Kh7 {[%clk 0:00:15]} 32. Qh3 {[%clk 0:00:09]}  Rxd4 {[%clk 0:00:13]} 33. Qxc8 {[%clk 0:00:05]}  Rf4 {[%clk 0:00:12]} 34. Qh3 {[%clk 0:00:05]}  Qd2 {[%clk 0:00:09]} 35. Qg3 {[%clk 0:00:05]}  Rf5 {[%clk 0:00:07]} 36. b4 {[%clk 0:00:04]}  Rg5 {[%clk 0:00:06]} 37. Qf2 {[%clk 0:00:04]}  Qxc3 {[%clk 0:00:07]} 38. Rab1 {[%clk 0:00:03]}  Bxf3 {[%clk 0:00:06]} 39. g3 {[%clk 0:00:04]}  Bc6 {[%clk 0:00:06]} 40. Rec1 {[%clk 0:00:03]}  Qe5 {[%clk 0:00:06]} 41. Qc2+ {[%clk 0:00:03]}  Be4 {[%clk 0:00:05]} 42. Qf2 {[%clk 0:00:04]}  Rf5 {[%clk 0:00:05]} 43. Qd2 {[%clk 0:00:02]}  Bd5 {[%clk 0:00:04]} 44. Re1 {[%clk 0:00:01]}  Qd6 {[%clk 0:00:04]} 45. Rbd1 {[%clk 0:00:01]}  Rf1+ {[%clk 0:00:04]} 46. Rxf1 {[%clk 0:00:02]}  Qe5 {[%clk 0:00:02]} 47. Qf2 {[%clk 0:00:02]}  Be4 {[%clk 0:00:02]} 48. Rde1 {[%clk 0:00:03]}  Qd4 {[%clk 0:00:03]} 49. Re3 {[%clk 0:00:04]}  Bd3 {[%clk 0:00:03]} 50. Rd1 {[%clk 0:00:04]}  Bg6 {[%clk 0:00:04]} 51. Rxd4 {[%clk 0:00:04]}  h5 {[%clk 0:00:04]} 52. Rf4 {[%clk 0:00:05]}  Kh6 {[%clk 0:00:02]} 53. h4 {[%clk 0:00:06]} 1-0


[Site "https://www.chess.com"]

[Event "Titled Tuesday Blitz August 22 Late 2023"]
[White "Kochiev, Ivan"]
[Black "Tsyhanchuk, Stanislav"]
[WhiteFideId "2917890"]
[BlackFideId "13505130"]
[WhiteElo "2575"]
[BlackElo "2449"]
[Result "1-0"]
[Round "7"]
[TimeControl "180+1"]
[Date "2023.08.22"]
[WhiteClock "0:02:06"]
[BlackClock "0:02:04"]
[Board "86"]

1. e4 {[%clk 0:03:00]}  c5 {[%clk 0:02:59]} 2. Nf3 {[%clk 0:03:01]}  d6 {[%clk 0:02:59]} 3. d4 {[%clk 0:03:01]}  cxd4 {[%clk 0:03:00]} 4. Nxd4 {[%clk 0:03:02]}  Nf6 {[%clk 0:03:01]} 5. f3 {[%clk 0:03:03]}  e5 {[%clk 0:02:54]} 6. Nb3 {[%clk 0:03:02]}  Be6 {[%clk 0:02:55]} 7. c4 {[%clk 0:03:02]}  Nbd7 {[%clk 0:02:55]} 8. Nc3 {[%clk 0:03:02]}  Be7 {[%clk 0:02:52]} 9. Be3 {[%clk 0:03:02]}  a6 {[%clk 0:02:49]} 10. Be2 {[%clk 0:03:01]}  O-O {[%clk 0:02:49]} 11. O-O {[%clk 0:03:02]}  Nh5 {[%clk 0:02:46]} 12. Qd2 {[%clk 0:03:01]}  f5 {[%clk 0:02:43]} 13. exf5 {[%clk 0:03:01]}  Bxf5 {[%clk 0:02:40]} 14. g4 {[%clk 0:03:02]}  Nf4 {[%clk 0:02:29]} 15. Bxf4 {[%clk 0:02:47]}  exf4 {[%clk 0:02:26]} 16. gxf5 {[%clk 0:02:46]}  Rxf5 {[%clk 0:02:24]} 17. Nd4 {[%clk 0:02:46]}  Rh5 {[%clk 0:02:08]} 18. Ne6 {[%clk 0:02:06]}  Qb6+ {[%clk 0:02:06]} 19. Qd4 {[%clk 0:02:06]}  Qxb2 {[%clk 0:02:04]} 20. Qxg7# {[%clk 0:02:06]} 1-0


[Site "https://www.chess.com"]

[Event "Titled Tuesday Blitz August 22 Late 2023"]
[White "Ilkhomi, Jaloliddin"]
[Black "Haszon, David"]
[WhiteFideId "14700948"]
[BlackFideId "733610"]
[WhiteElo "2565"]
[BlackElo "2447"]
[Result "0-1"]
[Round "7"]
[TimeControl "180+1"]
[Date "2023.08.22"]
[WhiteClock "0:00:20"]
[BlackClock "0:00:56"]
[Board "88"]

1. Nf3 {[%clk 0:03:00]}  Nf6 {[%clk 0:02:58]} 2. d4 {[%clk 0:02:59]}  g6 {[%clk 0:02:55]} 3. Bg5 {[%clk 0:02:58]}  Bg7 {[%clk 0:02:53]} 4. Nbd2 {[%clk 0:02:57]}  d5 {[%clk 0:02:50]} 5. e3 {[%clk 0:02:56]}  O-O {[%clk 0:02:49]} 6. Bd3 {[%clk 0:02:55]}  b6 {[%clk 0:02:42]} 7. O-O {[%clk 0:02:54]}  c5 {[%clk 0:02:42]} 8. c3 {[%clk 0:02:54]}  Nc6 {[%clk 0:02:42]} 9. Qe2 {[%clk 0:02:54]}  Bb7 {[%clk 0:02:42]} 10. dxc5 {[%clk 0:02:53]}  bxc5 {[%clk 0:02:42]} 11. e4 {[%clk 0:02:53]}  d4 {[%clk 0:02:41]} 12. Rfd1 {[%clk 0:02:48]}  e5 {[%clk 0:02:35]} 13. Nc4 {[%clk 0:02:39]}  Re8 {[%clk 0:02:31]} 14. cxd4 {[%clk 0:02:34]}  Nxd4 {[%clk 0:02:26]} 15. Nxd4 {[%clk 0:02:31]}  exd4 {[%clk 0:02:24]} 16. f3 {[%clk 0:02:24]}  Qc7 {[%clk 0:02:06]} 17. Qd2 {[%clk 0:02:18]}  Nd7 {[%clk 0:02:02]} 18. Rac1 {[%clk 0:02:12]}  Ne5 {[%clk 0:01:58]} 19. Bf4 {[%clk 0:02:04]}  Qe7 {[%clk 0:01:43]} 20. Nxe5 {[%clk 0:01:54]}  Bxe5 {[%clk 0:01:44]} 21. Rc2 {[%clk 0:01:52]}  Rac8 {[%clk 0:01:35]} 22. Rdc1 {[%clk 0:01:50]}  Qd6 {[%clk 0:01:31]} 23. Bxe5 {[%clk 0:01:48]}  Qxe5 {[%clk 0:01:32]} 24. Qa5 {[%clk 0:01:42]}  Qg5 {[%clk 0:01:20]} 25. Rxc5 {[%clk 0:01:26]}  Qe3+ {[%clk 0:01:18]} 26. Kf1 {[%clk 0:00:55]}  Qxd3+ {[%clk 0:01:16]} 27. Kf2 {[%clk 0:00:52]}  Qe3+ {[%clk 0:01:15]} 28. Kg3 {[%clk 0:00:51]}  Rxc5 {[%clk 0:01:10]} 29. Rxc5 {[%clk 0:00:45]}  Bxe4 {[%clk 0:01:04]} 30. Qb5 {[%clk 0:00:37]}  Bf5 {[%clk 0:00:57]} 31. Rd5 {[%clk 0:00:28]}  Qe1+ {[%clk 0:00:55]} 32. Kf4 {[%clk 0:00:27]}  Qh4+ {[%clk 0:00:56]} 33. g4 {[%clk 0:00:24]}  Qxh2+ {[%clk 0:00:56]} 34. Kg5 {[%clk 0:00:23]}  h6+ {[%clk 0:00:56]} 35. Kf6 {[%clk 0:00:20]}  Re6# {[%clk 0:00:56]} 0-1


[Site "https://www.chess.com"]

[Event "Titled Tuesday Blitz August 22 Late 2023"]
[White "Onthequiet"]
[Black "Souleidis, Georgios"]
[BlackFideId "4206827"]
[WhiteElo "2434"]
[BlackElo "2563"]
[Result "1-0"]
[Round "7"]
[TimeControl "180+1"]
[Date "2023.08.22"]
[WhiteClock "0:00:14"]
[BlackClock "0:00:01"]
[Board "89"]

1. d4 {[%clk 0:03:00]}  Nf6 {[%clk 0:02:59]} 2. Nf3 {[%clk 0:03:00]}  g6 {[%clk 0:03:00]} 3. Bg5 {[%clk 0:03:00]}  Bg7 {[%clk 0:03:00]} 4. Nbd2 {[%clk 0:03:01]}  d5 {[%clk 0:03:00]} 5. c3 {[%clk 0:03:01]}  O-O {[%clk 0:03:00]} 6. e3 {[%clk 0:03:01]}  Nbd7 {[%clk 0:02:59]} 7. Be2 {[%clk 0:03:00]}  Re8 {[%clk 0:02:59]} 8. b4 {[%clk 0:03:00]}  e5 {[%clk 0:02:58]} 9. O-O {[%clk 0:03:00]}  a6 {[%clk 0:02:48]} 10. Nb3 {[%clk 0:02:59]}  c6 {[%clk 0:02:35]} 11. a4 {[%clk 0:02:58]}  h6 {[%clk 0:02:34]} 12. Bh4 {[%clk 0:02:58]}  g5 {[%clk 0:02:27]} 13. Bg3 {[%clk 0:02:58]}  Ne4 {[%clk 0:02:28]} 14. Qc1 {[%clk 0:02:52]}  Nxg3 {[%clk 0:02:22]} 15. hxg3 {[%clk 0:02:52]}  e4 {[%clk 0:02:02]} 16. Nfd2 {[%clk 0:02:51]}  Nf6 {[%clk 0:02:02]} 17. c4 {[%clk 0:02:51]}  Bg4 {[%clk 0:02:02]} 18. Qd1 {[%clk 0:02:49]}  Bxe2 {[%clk 0:01:59]} 19. Qxe2 {[%clk 0:02:48]}  Qd6 {[%clk 0:01:58]} 20. c5 {[%clk 0:02:42]}  Qd7 {[%clk 0:01:57]} 21. Nb1 {[%clk 0:02:35]}  Qg4 {[%clk 0:01:45]} 22. Qxg4 {[%clk 0:02:33]}  Nxg4 {[%clk 0:01:46]} 23. Nc3 {[%clk 0:02:33]}  f5 {[%clk 0:01:44]} 24. Ra2 {[%clk 0:02:30]}  Rf8 {[%clk 0:01:38]} 25. Ne2 {[%clk 0:02:24]}  Ra7 {[%clk 0:01:19]} 26. Rfa1 {[%clk 0:02:22]}  Rfa8 {[%clk 0:01:19]} 27. Nd2 {[%clk 0:02:17]}  Kf7 {[%clk 0:01:11]} 28. Nb1 {[%clk 0:02:17]}  Ke6 {[%clk 0:01:09]} 29. Nbc3 {[%clk 0:02:18]}  Bf6 {[%clk 0:01:01]} 30. Rb1 {[%clk 0:02:17]}  Bd8 {[%clk 0:00:58]} 31. Rab2 {[%clk 0:02:15]}  Kd7 {[%clk 0:00:49]} 32. Nd1 {[%clk 0:02:15]}  Bc7 {[%clk 0:00:47]} 33. f3 {[%clk 0:02:13]}  Nf6 {[%clk 0:00:46]} 34. Kf2 {[%clk 0:02:13]}  Re8 {[%clk 0:00:33]} 35. Ndc3 {[%clk 0:02:10]}  h5 {[%clk 0:00:26]} 36. b5 {[%clk 0:01:56]}  axb5 {[%clk 0:00:27]} 37. axb5 {[%clk 0:01:56]}  Raa8 {[%clk 0:00:27]} 38. b6 {[%clk 0:01:51]}  Bd8 {[%clk 0:00:24]} 39. Ra2 {[%clk 0:01:48]}  Rxa2 {[%clk 0:00:20]} 40. Nxa2 {[%clk 0:01:49]}  Be7 {[%clk 0:00:20]} 41. Nec3 {[%clk 0:01:42]}  Ra8 {[%clk 0:00:20]} 42. Rb4 {[%clk 0:01:35]}  Ra3 {[%clk 0:00:19]} 43. Ra4 {[%clk 0:01:35]}  Rb3 {[%clk 0:00:17]} 44. Rb4 {[%clk 0:01:35]}  Ra3 {[%clk 0:00:17]} 45. Ke2 {[%clk 0:01:26]}  exf3+ {[%clk 0:00:17]} 46. gxf3 {[%clk 0:01:26]}  g4 {[%clk 0:00:18]} 47. Rb2 {[%clk 0:01:19]}  Bf8 {[%clk 0:00:17]} 48. f4 {[%clk 0:01:17]}  Be7 {[%clk 0:00:16]} 49. Kd1 {[%clk 0:01:16]}  Ra8 {[%clk 0:00:13]} 50. Rh2 {[%clk 0:01:16]}  Rh8 {[%clk 0:00:13]} 51. Nb4 {[%clk 0:01:10]}  Ne8 {[%clk 0:00:13]} 52. Ra2 {[%clk 0:01:02]}  h4 {[%clk 0:00:12]} 53. gxh4 {[%clk 0:01:02]}  Ng7 {[%clk 0:00:08]} 54. Ra7 {[%clk 0:00:58]}  Rb8 {[%clk 0:00:08]} 55. Ncxd5 {[%clk 0:00:27]}  cxd5 {[%clk 0:00:09]} 56. c6+ {[%clk 0:00:27]}  Ke6 {[%clk 0:00:09]} 57. Rxb7 {[%clk 0:00:24]}  Rc8 {[%clk 0:00:07]} 58. Rxe7+ {[%clk 0:00:21]}  Kxe7 {[%clk 0:00:07]} 59. Nxd5+ {[%clk 0:00:22]}  Kd6 {[%clk 0:00:07]} 60. b7 {[%clk 0:00:20]}  Rh8 {[%clk 0:00:07]} 61. c7 {[%clk 0:00:19]}  Kxd5 {[%clk 0:00:02]} 62. c8=Q {[%clk 0:00:19]}  Rxh4 {[%clk 0:00:01]} 63. b8=Q {[%clk 0:00:17]}  Ke4 {[%clk 0:00:01]} 64. Kc2 {[%clk 0:00:16]}  Kf3 {[%clk 0:00:02]} 65. Qbb7+ {[%clk 0:00:15]}  Kg3 {[%clk 0:00:01]} 66. Qxg7 {[%clk 0:00:15]}  Rh2+ {[%clk 0:00:02]} 67. Kd3 {[%clk 0:00:15]}  Rh1 {[%clk 0:00:01]} 68. Qxf5 {[%clk 0:00:14]} 1-0


[Site "https://www.chess.com"]

[Event "Titled Tuesday Blitz August 22 Late 2023"]
[White "brm72"]
[Black "Nunez V, Gustavo Eduardo"]
[BlackFideId "4403690"]
[WhiteElo "2553"]
[BlackElo "2442"]
[Result "1-0"]
[Round "7"]
[TimeControl "180+1"]
[Date "2023.08.22"]
[WhiteClock "0:00:58"]
[BlackClock "0:00:10"]
[Board "90"]

1. e4 {[%clk 0:03:00]}  c5 {[%clk 0:02:59]} 2. Nf3 {[%clk 0:03:00]}  Nc6 {[%clk 0:02:56]} 3. Bb5 {[%clk 0:02:59]}  g6 {[%clk 0:02:53]} 4. Bxc6 {[%clk 0:02:59]}  dxc6 {[%clk 0:02:54]} 5. O-O {[%clk 0:02:56]}  Bg7 {[%clk 0:02:54]} 6. d3 {[%clk 0:02:54]}  e5 {[%clk 0:02:54]} 7. h3 {[%clk 0:02:54]}  Qc7 {[%clk 0:02:54]} 8. Be3 {[%clk 0:02:52]}  b6 {[%clk 0:02:54]} 9. a4 {[%clk 0:02:52]}  a5 {[%clk 0:02:54]} 10. Nbd2 {[%clk 0:02:52]}  Nf6 {[%clk 0:02:45]} 11. Nc4 {[%clk 0:02:49]}  Nh5 {[%clk 0:02:38]} 12. Qd2 {[%clk 0:02:27]}  Be6 {[%clk 0:02:31]} 13. Qc3 {[%clk 0:02:23]}  Bxc4 {[%clk 0:02:25]} 14. Qxc4 {[%clk 0:02:24]}  O-O {[%clk 0:02:25]} 15. c3 {[%clk 0:02:14]}  Rad8 {[%clk 0:02:08]} 16. d4 {[%clk 0:02:13]}  exd4 {[%clk 0:02:00]} 17. cxd4 {[%clk 0:02:14]}  cxd4 {[%clk 0:02:00]} 18. Bxd4 {[%clk 0:02:15]}  Bxd4 {[%clk 0:01:45]} 19. Nxd4 {[%clk 0:02:14]}  c5 {[%clk 0:01:46]} 20. Nf3 {[%clk 0:02:09]}  Rd7 {[%clk 0:01:28]} 21. Rfe1 {[%clk 0:01:59]}  Rfd8 {[%clk 0:01:25]} 22. e5 {[%clk 0:02:00]}  Ng7 {[%clk 0:01:22]} 23. Ng5 {[%clk 0:01:57]}  Rd4 {[%clk 0:01:19]} 24. Qa2 {[%clk 0:01:54]}  h6 {[%clk 0:01:07]} 25. Nf3 {[%clk 0:01:44]}  R4d5 {[%clk 0:00:56]} 26. Re3 {[%clk 0:01:26]}  Ne6 {[%clk 0:00:55]} 27. Rae1 {[%clk 0:01:23]}  Rd1 {[%clk 0:00:38]} 28. Nh2 {[%clk 0:01:20]}  h5 {[%clk 0:00:23]} 29. Nf3 {[%clk 0:01:19]}  Qc6 {[%clk 0:00:20]} 30. Qb3 {[%clk 0:01:17]}  Rxe1+ {[%clk 0:00:14]} 31. Rxe1 {[%clk 0:01:18]}  Nd4 {[%clk 0:00:11]} 32. Nxd4 {[%clk 0:01:17]}  cxd4 {[%clk 0:00:11]} 33. e6 {[%clk 0:01:18]}  Qd5 {[%clk 0:00:09]} 34. exf7+ {[%clk 0:01:15]}  Qxf7 {[%clk 0:00:10]} 35. Qxb6 {[%clk 0:01:15]}  Rd7 {[%clk 0:00:07]} 36. Qxa5 {[%clk 0:01:12]}  d3 {[%clk 0:00:07]} 37. Qd2 {[%clk 0:01:12]}  Rd5 {[%clk 0:00:06]} 38. b4 {[%clk 0:01:11]}  Qd7 {[%clk 0:00:04]} 39. a5 {[%clk 0:01:11]}  Qb5 {[%clk 0:00:04]} 40. Ra1 {[%clk 0:01:10]}  Kh7 {[%clk 0:00:04]} 41. a6 {[%clk 0:01:10]}  Rd8 {[%clk 0:00:05]} 42. a7 {[%clk 0:01:10]}  Ra8 {[%clk 0:00:05]} 43. Ra3 {[%clk 0:01:10]}  Qb7 {[%clk 0:00:05]} 44. Qxd3 {[%clk 0:01:03]}  Rxa7 {[%clk 0:00:05]} 45. Rxa7 {[%clk 0:01:02]}  Qxa7 {[%clk 0:00:06]} 46. g3 {[%clk 0:00:59]}  Qa1+ {[%clk 0:00:06]} 47. Kg2 {[%clk 0:00:57]}  Qa8+ {[%clk 0:00:07]} 48. Kh2 {[%clk 0:00:56]}  Qb7 {[%clk 0:00:07]} 49. Qd4 {[%clk 0:00:55]}  Qf7 {[%clk 0:00:08]} 50. h4 {[%clk 0:00:55]}  Qc7 {[%clk 0:00:06]} 51. Qc5 {[%clk 0:00:54]}  Qb7 {[%clk 0:00:06]} 52. b5 {[%clk 0:00:55]}  Qf7 {[%clk 0:00:05]} 53. b6 {[%clk 0:00:54]}  g5 {[%clk 0:00:06]} 54. Qc7 {[%clk 0:00:54]}  Qxc7 {[%clk 0:00:04]} 55. bxc7 {[%clk 0:00:55]}  gxh4 {[%clk 0:00:05]} 56. gxh4 {[%clk 0:00:55]}  Kg6 {[%clk 0:00:05]} 57. c8=Q {[%clk 0:00:55]}  Kg7 {[%clk 0:00:06]} 58. Qf5 {[%clk 0:00:55]}  Kh6 {[%clk 0:00:07]} 59. Qg5+ {[%clk 0:00:55]}  Kh7 {[%clk 0:00:08]} 60. Kg3 {[%clk 0:00:55]}  Kh8 {[%clk 0:00:08]} 61. Kf4 {[%clk 0:00:55]}  Kh7 {[%clk 0:00:09]} 62. Ke5 {[%clk 0:00:56]}  Kh8 {[%clk 0:00:09]} 63. Kf6 {[%clk 0:00:57]}  Kh7 {[%clk 0:00:10]} 64. Qg7# {[%clk 0:00:58]} 1-0


[Site "https://www.chess.com"]